bitfinex/quotes_ETHUSD_20250605
["timestamp","ask_amount","ask_price","bid_price","bid_amount"]
[1749142131033,3.90240716,2562.6,2561.9,0.7837]
[1749142131265,3.90260418,2562.4,2561.9,0.7837]
[1749142131464,7.037,2562.9,2562.0,0.67341506]
[1749142131757,7.037,2562.9,2561.9,0.7837]
[1749142131758,16.0,2562.8,2561.9,0.7837]
[1749142131960,20.0,2562.0,2561.9,0.7837]
[1749142132219,20.0,2562.0,2561.9,4.68705298]
[1749142132358,36.0,2562.0,2560.7,0.82]
[1749142132564,3.90502967,2560.8,2560.7,0.82]
[1749142133272,3.90518217,2560.7,2560.6,2.047]
[1749142133965,3.90581462,2560.3,2560.1,0.02]
[1749142134171,3.90593583,2560.3,2560.2,2.047]
[1749142135082,3.90593583,2560.3,2560.2,2.333]
[1749142135675,3.90579228,2560.3,2560.2,2.333]
[1749142135877,3.90594484,2560.2,2560.1,2.067]
[1749142136345,16.8173,2560.8,2560.1,2.067]
[1749142136346,3.90559152,2560.5,2560.1,2.067]
[1749142136674,16.0,2560.9,2560.2,0.7694]
[1749142137063,3.90557987,2560.5,2560.2,0.7694]
[1749142137268,19.90489437,2560.9,2560.2,0.7694]
[1749142137469,19.90489437,2560.9,2560.1,2.067]
[1749142137470,3.90594484,2560.2,2560.1,2.067]
[1749142137785,3.90594484,2560.2,2560.1,0.02]
[1749142139639,19.90594484,2560.2,2560.1,0.02]
[1749142140663,61.32170095,2560.2,2560.1,0.02]
[1749142140896,62.48255021,2560.2,2560.1,0.02]
[1749142141163,62.84591517,2560.2,2560.1,0.02]
[1749142141867,50.69597108,2559.2,2559.1,0.02]
[1749142142113,30.78712719,2559.2,2559.1,0.02]
[1749142142267,3.90707549,2559.5,2559.1,0.02]
[1749142142471,23.042,2559.9,2559.1,1.6387325]
[1749142142703,0.8174,2560.1,2559.6,3.90684546]
[1749142143005,3.90609741,2560.1,2559.3,20.67170734]
[1749142143245,4.0,2560.2,2559.6,4.72103425]
[1749142143421,4.0,2560.2,2559.7,7.8623]
[1749142143716,3.90571141,2560.4,2559.9,3.90639223]
[1749142143943,3.90554607,2560.5,2560.0,5.95418409]
[1749142144069,3.90518217,2560.7,2560.1,2.048]
[1749142144271,3.90594484,2560.2,2560.1,2.048]
[1749142145274,4.68712004,2560.2,2560.1,2.048]
[1749142146094,3.90625,2560.0,2559.6,2.048]
[1749142146293,3.90668572,2559.8,2559.3,2.822]
[1749142146608,3.90665565,2559.8,2559.3,2.822]
[1749142146906,16.0,2560.3,2559.3,2.822]
[1749142146907,3.90572031,2560.4,2559.3,2.822]
[1749142147093,3.9054797,2560.6,2560.0,3.90618925]
[1749142147312,3.9054797,2560.6,2559.6,0.7939]
[1749142147313,3.90488132,2560.9,2560.2,3.9058687]
[1749142147517,3.90502967,2560.8,2560.3,4.89174016]
[1749142147690,1.11334897,2561.2,2560.6,3.90522198]
[1749142147691,0.75,2561.2,2560.6,3.90522198]
[1749142148001,3.9044198,2561.2,2560.6,3.90530376]
[1749142148198,3.90411493,2561.4,2560.7,0.7984]
[1749142148399,3.90451067,2561.2,2560.8,2.048]
[1749142148726,3.90458215,2561.1,2560.8,2.048]
[1749142149134,3.90418478,2561.4,2560.9,3.90486585]
[1749142149436,3.90419932,2561.4,2560.9,0.67512659]
[1749142149589,3.90406594,2561.5,2561.0,3.90471229]
[1749142149789,0.20380531,2561.8,2560.9,0.67512659]
[1749142150007,3.90362328,2561.8,2561.3,3.90419392]
[1749142150203,3.90397404,2561.5,2561.0,4.73547532]
[1749142150418,0.02,2561.9,2561.0,0.8308]
[1749142150616,3.90350534,2561.8,2561.1,2.065]
[1749142150825,3.9044198,2561.2,2561.1,2.065]
[1749142151035,3.90434146,2561.3,2561.1,2.065]
[1749142151243,3.9044198,2561.2,2561.1,2.065]
[1749142151447,0.78084645,2561.3,2561.1,2.8483]
[1749142151649,3.90380813,2561.7,2561.1,2.8483]
[1749142151802,3.90362529,2561.8,2561.1,2.8483]
[1749142152003,7.073,2561.9,2561.1,2.8483]
[1749142152757,3.90403728,2561.5,2561.1,2.8483]
[1749142152913,3.90393297,2561.6,2561.1,2.8483]
[1749142153247,3.90399158,2561.5,2561.1,2.8483]
[1749142153642,3.90429077,2561.3,2560.4,3.90549171]
[1749142153809,13.90472471,2561.0,2560.2,0.8168]
[1749142154009,30.0,2560.7,2559.9,11.3168]
[1749142154315,3.90625,2560.0,2559.9,10.5]
[1749142154746,16.0,2560.8,2559.9,11.55]
[1749142154951,3.9051445,2560.8,2560.1,0.7645]
[1749142155122,3.90587772,2560.3,2560.1,0.7645]
[1749142155328,3.90599735,2560.2,2559.9,10.5]
[1749142155528,3.90623291,2560.1,2559.9,10.5]
[1749142155846,3.90616897,2560.1,2559.9,10.5]
[1749142156161,3.90622837,2560.1,2559.9,10.5]
[1749142156464,0.758,2560.9,2559.9,11.62645]
[1749142157011,3.90497004,2560.9,2560.4,3.90561492]
[1749142157261,0.02,2561.9,2560.7,0.7645]
[1749142157442,3.90350534,2561.8,2560.9,0.7645]
[1749142157807,3.90357912,2561.8,2561.2,3.90431461]
[1749142158160,0.02,2561.9,2561.8,0.7572]
[1749142158363,0.02,2561.9,2561.8,2.8222]
[1749142158734,3.92335298,2561.9,2561.8,2.8222]
[1749142159112,3.90350534,2561.8,2561.7,2.065]
[1749142161032,3.90426736,2561.3,2561.0,0.7659]
[1749142161358,3.90419162,2561.4,2561.0,0.7659]
[1749142161552,3.90431785,2561.3,2561.0,0.7659]
[1749142161738,3.90457225,2561.1,2561.0,0.7659]
[1749142162058,3.90427198,2561.3,2561.0,2.8309]
[1749142162225,7.09,2561.5,2561.0,2.8309]
[1749142162443,3.90444393,2561.2,2561.0,2.8309]
[1749142162682,3.90457225,2561.1,2561.0,2.8309]
[1749142162981,3.90457225,2561.1,2561.0,0.7659]
[1749142163181,3.90518217,2560.7,2560.6,0.823]
[1749142163473,10.99398754,2561.5,2560.6,2.888]
[1749142163655,7.09,2561.5,2560.6,2.888]
[1749142163967,3.90518217,2560.7,2560.6,2.888]
[1749142164169,3.90489057,2560.9,2560.6,2.888]
[1749142164170,10.99398432,2561.5,2560.6,2.888]
[1749142164332,3.90466333,2561.1,2560.6,7.08203735]
[1749142164529,3.90462467,2561.1,2560.6,7.08213338]
[1749142164732,19.90370289,2561.7,2560.7,0.55]
[1749142164934,3.90495642,2560.9,2560.6,2.888]
[1749142165129,3.90481236,2561.0,2560.6,2.888]
[1749142165383,3.90396252,2561.5,2560.7,2.065]
[1749142165663,3.90419183,2561.4,2560.7,2.065]
[1749142165871,3.90487851,2560.9,2560.7,2.065]
[1749142166079,3.90494552,2560.9,2560.7,2.065]
[1749142166453,3.904672,2561.1,2560.7,2.065]
[1749142166965,3.90432074,2561.3,2560.8,3.90499285]
[1749142167170,3.90426188,2561.4,2560.9,0.59699929]
[1749142167467,3.9044173,2561.3,2560.7,5.97008018]
[1749142167651,3.90429658,2561.3,2560.8,3.90499316]
[1749142167831,3.90442777,2561.2,2560.7,21.9701126]
[1749142168234,0.02,2561.9,2560.8,1.3152]
[1749142168468,0.02,2561.9,2561.2,0.7652]
[1749142168669,0.02,2561.9,2561.6,3.90372744]
[1749142168875,0.02,2561.9,2561.8,4.66870534]
[1749142169031,0.02,2561.9,2561.8,5.21870534]
[1749142169237,0.02,2561.9,2561.8,6.33743886]
[1749142169458,0.02,2561.9,2561.8,22.33743886]
[1749142170952,0.02,2561.9,2561.8,29.7775786]
[1749142171855,0.02,2561.9,2561.8,23.85143886]
[1749142172174,0.02,2561.9,2561.8,30.90443886]
[1749142172381,0.02,2561.9,2561.8,21.78743886]
[1749142172586,0.02,2561.9,2561.8,30.90143886]
[1749142172757,0.02,2561.9,2561.8,31.45143886]
[1749142174293,0.02,2561.9,2561.8,22.33743886]
[1749142174501,0.02,2561.9,2561.8,23.85143886]
[1749142174651,0.02,2561.9,2561.8,1.88393352]
[1749142174855,3.92337808,2561.9,2561.8,2.064]
[1749142175098,0.02,2561.9,2561.8,10.4447]
[1749142175312,0.02,2561.9,2561.8,30.34820534]
[1749142176458,19.91745801,2562.0,2561.9,20.45335298]
[1749142176764,19.91745801,2562.0,2561.9,25.1491697]
[1749142177453,8.34709684,2562.0,2561.9,21.24825298]
[1749142177770,7.51379684,2562.0,2561.9,25.34341598]
[1749142178088,7.51379684,2562.0,2561.9,21.24825298]
[1749142178493,7.51379684,2562.0,2561.9,23.26921298]
[1749142179090,7.51379684,2562.0,2561.9,24.54894298]
[1749142179387,5.91844259,2562.0,2561.9,27.67784298]
[1749142179794,0.02,2562.9,2562.8,20.4519822]
[1749142179962,0.02,2563.9,2563.8,3.90046025]
[1749142180163,0.02,2563.9,2563.3,0.55]
[1749142180478,0.02,2563.9,2562.9,3.90182995]
[1749142180479,0.02,2563.9,2562.9,16.0]
[1749142180687,0.02,2563.9,2563.5,16.0]
[1749142180853,0.02,2563.9,2563.6,2.063]
[1749142181049,3.90053338,2563.8,2563.7,2.063]
[1749142181259,0.02,2563.9,2563.7,2.063]
[1749142181591,3.92038809,2563.9,2563.7,2.063]
[1749142181969,3.9203195,2563.9,2563.7,2.063]
[1749142182167,0.7898,2563.8,2562.9,16.0]
[1749142182370,0.7898,2563.8,2562.2,13.99394866]
[1749142182371,3.90070174,2563.7,2563.1,26.96337548]
[1749142182567,0.7898,2563.8,2563.3,3.90111351]
[1749142182793,0.7898,2563.8,2563.2,18.063]
[1749142182997,0.02,2563.9,2563.2,2.063]
[1749142183160,0.02,2563.9,2563.4,3.90097453]
[1749142183358,3.9203225,2563.9,2563.4,3.90097453]
[1749142183592,0.02,2563.9,2563.4,3.9010262]
[1749142183802,3.92033706,2563.9,2563.4,3.9010262]
[1749142184283,3.90046843,2563.8,2563.3,3.90115096]
[1749142184992,0.02,2563.9,2563.2,9.108]
[1749142185199,0.02,2563.9,2562.9,16.0]
[1749142185360,0.8024,2563.6,2563.0,2.063]
[1749142185556,3.90091671,2563.5,2563.0,2.063]
[1749142185762,3.90121331,2563.4,2563.0,2.063]
[1749142186157,3.90148301,2563.2,2563.0,2.063]
[1749142186504,4.7042044,2563.0,2562.8,8.428]
[1749142186684,3.90182995,2562.9,2562.8,10.491]
[1749142187262,0.8024,2563.0,2562.8,10.491]
[1749142187466,4.70419753,2563.0,2562.8,10.491]
[1749142187669,0.8024,2563.0,2562.8,10.491]
[1749142187890,4.70419906,2563.0,2562.8,10.491]
[1749142188067,3.90182995,2562.9,2562.8,8.428]
[1749142188268,4.70413025,2563.0,2562.8,10.491]
[1749142188666,0.8024,2563.0,2562.8,10.491]
[1749142189595,3.90182995,2562.9,2562.8,10.491]
[1749142190195,3.9019822,2562.8,2562.7,2.063]
[1749142190379,4.76242203,2562.9,2562.3,2.063]
[1749142190380,3.90255214,2562.5,2562.3,2.063]
[1749142190700,0.86059208,2562.9,2562.3,2.063]
[1749142190864,3.90222233,2562.7,2562.3,2.063]
[1749142191068,4.70415294,2563.0,2562.4,3.90259132]
[1749142191293,0.8064,2563.3,2562.6,3.90215696]
[1749142191477,3.90072502,2563.7,2563.0,3.90163353]
[1749142191676,0.8064,2563.6,2563.1,5.9644568]
[1749142191882,3.90115838,2563.4,2563.1,2.063]
[1749142192110,3.90099702,2563.5,2563.1,2.063]
[1749142192472,3.90091671,2563.5,2563.1,2.063]
[1749142192674,3.90124412,2563.3,2563.1,2.063]
[1749142192869,3.90099365,2563.5,2563.1,2.063]
[1749142193097,0.8064,2563.6,2563.1,2.063]
[1749142193298,0.8064,2563.6,2563.2,2.063]
[1749142193505,3.90111419,2563.4,2563.2,2.063]
[1749142193671,3.90100171,2563.5,2563.2,2.063]
[1749142194005,3.90046942,2563.8,2563.2,2.063]
[1749142194169,3.90074695,2563.7,2563.2,5.96430277]
[1749142194369,3.90086493,2563.6,2563.2,2.063]
[1749142194794,3.90046025,2563.8,2562.3,0.55]
[1749142194967,3.90125717,2563.3,2562.8,3.90189702]
[1749142195181,3.90152503,2563.2,2562.5,3.90243902]
[1749142195380,3.90098851,2563.5,2563.0,3.90159053]
[1749142195603,3.90098851,2563.5,2563.1,2.063]
[1749142195969,3.90107641,2563.4,2563.1,2.063]
[1749142196368,3.90137328,2563.2,2563.1,2.063]
[1749142196780,3.90137328,2563.2,2562.7,7.009]
[1749142196781,3.9014097,2563.2,2562.7,7.009]
[1749142196979,3.9014097,2563.2,2562.6,16.0]
[1749142196980,3.90160851,2563.1,2562.8,2.063]
[1749142197181,3.90149287,2563.2,2562.8,2.063]
[1749142197428,4.25855569,2563.2,2562.8,2.063]
[1749142197587,0.35706282,2563.2,2562.3,19.90269346]
[1749142197907,3.90212944,2562.8,2562.4,9.067]
[1749142198085,3.90214822,2562.7,2562.5,2.063]
[1749142198284,0.7855,2563.1,2562.5,2.063]
[1749142198480,3.90193803,2562.9,2562.5,2.063]
[1749142198708,3.90228674,2562.6,2562.5,2.063]
[1749142198908,4.6870408,2563.1,2562.1,3.90298709]
[1749142198909,0.72212826,2563.0,2562.1,3.90298709]
[1749142199086,3.9019822,2562.8,2562.2,21.96589487]
[1749142199283,3.90215851,2562.7,2562.2,21.9658078]
[1749142199514,3.90171255,2563.0,2562.2,2.063]
[1749142199715,3.90213446,2562.7,2562.2,5.96586836]
[1749142199879,1.24050854,2563.1,2562.2,2.063]
[1749142200075,3.90245926,2562.5,2562.2,2.063]
[1749142200277,3.90274362,2562.3,2562.2,2.063]
[1749142200479,7.36505316,2562.3,2561.3,2.063]
[1749142200681,3.90411493,2561.4,2561.3,2.063]
[1749142201404,3.90366404,2561.7,2561.3,2.063]
[1749142201719,3.9044198,2561.2,2560.6,12.33025121]
[1749142201878,3.9044198,2561.2,2560.6,8.425]
[1749142202081,5.12532684,2561.2,2560.7,2.063]
[1749142202499,4.76083062,2561.2,2560.7,2.063]
[1749142202785,4.76083062,2561.2,2559.9,3.90630009]
[1749142202786,3.9044198,2561.2,2559.9,3.90630009]
[1749142203119,7.9044198,2561.2,2560.6,2.063]
[1749142203323,3.90518217,2560.7,2560.6,2.063]
[1749142203483,3.90518217,2560.7,2560.1,2.083]
[1749142203696,3.90594484,2560.2,2560.1,2.083]
[1749142203896,3.90563974,2560.4,2560.1,2.083]
[1749142204252,3.90594484,2560.2,2560.1,0.02]
[1749142204414,4.68712022,2560.2,2560.1,0.02]
[1749142204737,10.91468275,2560.4,2560.1,0.02]
[1749142204947,3.90594484,2560.2,2560.1,0.02]
[1749142205141,3.90594484,2560.2,2559.6,8.427]
[1749142205142,3.90670781,2559.7,2559.6,8.427]
[1749142205442,50.72684484,2560.2,2559.6,8.427]
[1749142205443,0.8209,2560.2,2559.6,0.32613791]
[1749142205604,8.62779662,2560.2,2559.6,0.32613791]
[1749142205808,3.90670781,2559.7,2559.6,0.32613791]
[1749142206296,4.70700781,2559.7,2559.6,0.32613791]
[1749142207046,3.90747108,2559.2,2559.1,0.02]
[1749142207212,4.72047108,2559.2,2559.1,0.02]
[1749142207699,50.72047108,2559.2,2559.1,0.02]
[1749142207900,53.29387953,2559.2,2559.1,0.02]
[1749142208421,20.72047108,2559.2,2559.1,0.02]
[1749142208662,0.7624,2559.8,2559.2,3.90747108]
[1749142208804,0.7624,2560.1,2559.1,18.084]
[1749142209121,3.9069477,2559.6,2559.1,0.02]
[1749142209332,40.0,2560.0,2559.1,0.02]
[1749142209504,3.90721073,2559.4,2559.2,2.064]
[1749142209834,3.90681488,2559.7,2559.2,2.064]
[1749142210037,3.90677941,2559.7,2559.2,2.064]
[1749142210338,3.90688896,2559.6,2559.2,2.064]
[1749142210839,3.90704409,2559.5,2559.2,2.064]
[1749142211040,7.022,2559.9,2559.2,2.064]
[1749142211248,3.90693515,2559.6,2559.2,2.064]
[1749142211447,0.7624,2560.1,2559.2,2.064]
[1749142211763,7.014,2559.8,2559.2,2.064]
[1749142211951,3.90724119,2559.4,2559.3,2.042]
[1749142212248,7.014,2559.8,2559.3,2.042]
[1749142212460,7.014,2559.8,2559.4,3.90704282]
[1749142212763,0.20388428,2560.4,2559.5,7.007]
[1749142212976,0.20388428,2560.4,2559.6,19.90684558]
[1749142213261,3.90354063,2561.8,2560.1,3.90609211]
[1749142213262,3.90531976,2560.7,2560.1,3.90609211]
[1749142213420,0.8309,2561.0,2559.9,3.90633081]
[1749142213421,3.90555638,2560.5,2559.9,3.90633081]
[1749142213622,3.90555638,2560.5,2560.2,2.042]
[1749142213816,3.90579228,2560.3,2560.2,2.042]
[1749142214015,3.90655519,2559.8,2559.7,8.434]
[1749142214256,3.90577774,2560.4,2559.7,8.434]
[1749142214567,0.78112649,2560.3,2559.8,3.90648927]
[1749142214732,23.022,2560.5,2559.8,3.90648927]
[1749142214929,7.022,2560.5,2559.7,8.434]
[1749142215126,7.7808,2560.9,2560.3,3.90570746]
[1749142215329,0.7588,2560.9,2560.4,2.042]
[1749142215561,0.7588,2560.9,2560.5,5.94743113]
[1749142215859,7.021,2561.2,2560.7,3.90508405]
[1749142216029,0.7953,2561.4,2560.5,2.0625]
[1749142216228,0.7953,2561.4,2560.5,0.0205]
[1749142216229,3.90469256,2561.1,2560.5,0.0205]
[1749142216458,3.90469256,2561.1,2560.4,2.042]
[1749142216459,3.9054872,2560.5,2560.4,2.042]
[1749142216626,3.9056027,2560.5,2560.1,2.042]
[1749142216822,3.90594484,2560.2,2560.1,2.042]
[1749142217141,7.80309458,2560.5,2560.1,2.042]
[1749142217329,7.7933,2560.5,2560.1,2.042]
[1749142217534,3.90594484,2560.2,2560.1,2.042]
[1749142217753,3.90566537,2560.4,2560.1,2.042]
[1749142218062,0.7713,2560.5,2560.1,2.042]
[1749142218259,0.7713,2560.5,2560.1,5.9480135]
[1749142218435,4.67678976,2560.5,2560.1,2.042]
[1749142218639,3.90565652,2560.4,2560.1,2.042]
[1749142219035,0.7713,2560.5,2560.1,2.042]
[1749142219248,3.90442432,2561.2,2560.4,3.90557234]
[1749142219566,0.7515,2561.3,2560.3,3.90568596]
[1749142219725,3.90501186,2560.9,2560.3,3.90568596]
[1749142219925,3.9044198,2561.2,2560.3,16.0]
[1749142220121,3.90498145,2560.9,2560.4,5.94763418]
[1749142220364,3.90464843,2561.1,2560.6,3.90532907]
[1749142220569,3.90482531,2561.0,2560.5,3.90541418]
[1749142220861,7.49557769,2561.2,2560.4,2.042]
[1749142221066,3.90476941,2561.0,2560.5,3.905405]
[1749142221379,0.7742,2561.6,2560.4,2.042]
[1749142221539,0.7742,2561.6,2560.7,3.90515082]
[1749142221872,16.0,2561.4,2560.8,2.042]
[1749142222029,3.90547402,2560.6,2560.5,2.042]
[1749142222371,3.90574523,2560.4,2559.9,2.042]
[1749142222670,3.90609741,2560.1,2559.9,2.042]
[1749142222853,0.8161,2560.3,2559.9,2.042]
[1749142223371,4.65686899,2560.6,2560.1,3.90600548]
[1749142223725,7.034,2560.8,2560.1,0.22325937]
[1749142224075,4.72151796,2561.2,2560.3,3.90579228]
[1749142224224,0.20380157,2561.8,2560.6,20.45532539]
[1749142224579,3.92347275,2561.9,2561.0,3.90458078]
[1749142224580,0.02,2561.9,2561.0,3.90458078]
[1749142224725,3.90436584,2561.3,2561.1,2.042]
[1749142224929,3.90382275,2561.6,2560.8,0.0205]
[1749142225154,0.817,2561.4,2560.9,2.042]
[1749142225464,3.90430973,2561.3,2560.9,2.042]
[1749142225666,0.817,2561.4,2560.9,2.042]
[1749142225838,0.817,2561.4,2561.0,3.90472099]
[1749142226045,16.0,2561.8,2560.9,2.042]
[1749142226046,0.8081,2561.8,2560.9,2.042]
[1749142226225,40.0,2561.7,2560.9,2.042]
[1749142226428,3.90405196,2561.5,2560.6,16.0205]
[1749142226626,16.8081,2561.8,2561.0,3.90466182]
[1749142226830,4.71168056,2561.8,2561.3,3.9041454]
[1749142227032,0.02,2561.9,2561.4,2.041]
[1749142227282,0.02,2561.9,2561.4,5.94505042]
[1749142227494,0.02,2561.9,2561.4,2.041]
[1749142228088,0.02,2561.9,2561.4,5.94506831]
[1749142228290,0.02,2561.9,2561.7,3.90363399]
[1749142228567,0.02,2561.9,2561.4,2.041]
[1749142228792,3.92338578,2561.9,2561.3,16.0205]
[1749142228929,3.90368317,2561.7,2561.4,2.041]
[1749142229129,0.7837,2561.8,2561.5,2.041]
[1749142229326,10.02,2561.9,2561.6,3.90377931]
[1749142229327,0.02,2561.9,2561.6,3.90377931]
[1749142229531,0.02,2561.9,2561.8,3.90350534]
[1749142229753,0.02,2561.9,2561.8,19.90350534]
[1749142230153,0.02,2561.9,2561.8,20.47400534]
[1749142230355,0.02,2561.9,2561.8,19.92400534]
[1749142230660,0.02,2561.9,2561.8,29.55600534]
[1749142231469,0.02,2561.9,2561.8,29.00600534]
[1749142231671,0.02,2561.9,2561.8,16.0205]
[1749142231876,0.02,2561.9,2561.8,21.96500534]
[1749142232344,0.02,2561.9,2561.8,22.51500534]
[1749142234077,0.02,2561.9,2561.8,20.47400534]
[1749142234276,0.02,2561.9,2561.8,29.54900534]
[1749142234439,0.02,2561.9,2561.8,22.51500534]
[1749142234773,0.02,2561.9,2561.8,29.55100534]
[1749142235764,0.02,2561.9,2561.8,29.54600534]
[1749142236279,0.02,2561.9,2561.8,59.54600534]
[1749142236576,0.02,2561.9,2561.8,36.33394934]
[1749142236771,0.02,2561.9,2561.8,32.78575034]
[1749142236975,0.02,2561.9,2561.8,29.54400534]
[1749142237177,0.02,2562.9,2561.9,16.55]
[1749142237378,0.02,2562.9,2562.8,28.1322802]
[1749142237537,0.02,2563.9,2563.8,19.92096025]
[1749142237740,0.02,2563.9,2563.8,29.54596025]
[1749142238983,0.02,2563.9,2563.8,25.6455]
[1749142239277,0.02,2563.9,2563.8,18.0605]
[1749142239481,0.02,2563.9,2563.8,2.04]
[1749142239801,3.90078179,2563.6,2563.0,0.0205]
[1749142240000,3.90073115,2563.7,2563.1,2.04]
[1749142240144,3.92034446,2563.9,2563.1,2.04]
[1749142240344,4.37332295,2563.8,2563.1,2.04]
[1749142240652,0.02,2563.9,2563.1,2.04]
[1749142240855,3.90115288,2563.4,2563.1,2.04]
[1749142241197,0.02,2563.9,2563.2,2.053]
[1749142241481,0.02,2563.9,2563.3,3.90118325]
[1749142241482,3.92038704,2563.9,2563.3,3.90118325]
[1749142241639,0.02,2563.9,2563.4,3.90100743]
[1749142241841,0.02,2563.9,2563.3,3.92165222]
[1749142242277,0.02,2563.9,2563.3,0.0205]
[1749142242608,3.9008243,2563.6,2563.3,2.053]
[1749142242748,0.8079,2563.8,2563.3,2.053]
[1749142242945,0.02,2563.9,2563.3,2.053]
[1749142243165,3.90058445,2563.8,2563.3,5.9542155]
[1749142243364,3.90058445,2563.8,2563.3,5.9542105]
[1749142243560,3.92033554,2563.9,2563.4,3.90099486]
[1749142243762,0.02,2563.9,2563.6,3.90064086]
[1749142243969,0.02,2563.9,2563.7,3.90060905]
[1749142244203,0.02,2563.9,2563.8,3.90046025]
[1749142244659,0.02,2563.9,2563.8,20.45046025]
[1749142244860,0.02,2563.9,2563.8,20.47096025]
[1749142245895,0.02,2563.9,2563.8,29.55696025]
[1749142246395,0.02,2563.9,2563.8,2.0725]
[1749142246543,0.02,2563.9,2563.8,2.052]
[1749142246942,0.02,2563.9,2563.8,5.95246025]
[1749142247143,0.02,2563.9,2563.7,3.90055475]
[1749142247347,0.02,2563.9,2563.8,2.052]
[1749142248086,0.02,2563.9,2563.8,5.95246025]
[1749142248459,0.02,2563.9,2563.8,6.50246025]
[1749142248860,0.02,2563.9,2563.8,2.052]
[1749142250410,0.02,2563.9,2563.8,5.95246025]
[1749142250713,0.02,2563.9,2563.8,2.052]
[1749142250870,3.92030812,2563.9,2563.8,2.052]
[1749142251065,0.80205054,2563.9,2563.8,2.052]
[1749142251316,0.02,2563.9,2563.8,2.052]
[1749142252170,0.02,2563.9,2563.6,3.90063735]
[1749142252510,0.02,2563.9,2563.7,5.95259066]
[1749142252662,0.02,2563.9,2563.8,3.90046025]
[1749142252863,0.02,2563.9,2563.5,3.90089345]
[1749142253062,0.02,2563.9,2563.6,5.95274944]
[1749142253265,0.02,2563.9,2563.6,2.052]
[1749142253585,0.02,2563.9,2563.7,3.90056202]
[1749142253762,0.02,2563.9,2563.8,3.90046025]
[1749142254268,0.02,2563.9,2563.8,3.92096025]
[1749142255327,0.02,2563.9,2563.8,20.47096025]
[1749142255976,0.02,2563.9,2563.8,20.85163528]
[1749142256171,0.02,2563.9,2563.8,36.54575184]
[1749142256562,0.02,2563.9,2563.8,22.90363528]
[1749142256763,0.02,2563.9,2563.8,29.92563528]
[1749142257197,0.02,2563.9,2563.8,29.92663528]
[1749142257386,0.02,2563.9,2563.8,20.47096025]
[1749142257617,0.02,2563.9,2563.8,6.52296025]
[1749142257768,0.02,2563.9,2563.8,13.00096025]
[1749142257968,0.02,2563.9,2563.8,29.55096025]
[1749142259387,0.02,2563.9,2563.8,29.54196025]
[1749142259797,0.02,2563.9,2563.8,29.94136777]
[1749142260493,0.02,2563.9,2563.8,46.97744177]
[1749142260826,0.02,2564.9,2564.8,20.46943948]
[1749142261041,0.02,2564.9,2564.8,2.051]
[1749142261324,0.02,2564.9,2564.8,6.72319885]
[1749142261527,0.02,2564.9,2564.8,5.94993948]
[1749142261745,0.02,2564.9,2564.8,3.89893948]
[1749142261882,0.02,2564.9,2564.8,5.94993948]
[1749142262634,0.02,2564.9,2564.7,8.422]
[1749142262920,6.71598747,2564.9,2564.8,2.051]
[1749142263219,3.89893948,2564.8,2564.7,8.422]
[1749142263521,4.97469921,2564.8,2564.7,8.422]
[1749142263726,0.36369383,2564.8,2564.7,12.32109151]
[1749142263938,0.71214532,2564.8,2564.7,12.32109151]
[1749142264142,0.02,2564.9,2564.8,3.89893948]
[1749142265500,0.02,2564.9,2564.8,12.95793948]
[1749142265702,0.02,2564.9,2564.8,13.50793948]
[1749142266199,0.02,2564.9,2564.8,12.95593948]
[1749142267106,0.02,2564.9,2564.8,13.50593948]
[1749142267411,0.02,2564.9,2564.8,28.95593948]
[1749142267615,0.02,2564.9,2564.8,29.50593948]
[1749142267815,0.02,2564.9,2564.8,19.89893948]
[1749142268139,0.02,2564.9,2564.8,5.94993948]
[1749142268345,3.89893948,2564.8,2564.7,8.422]
[1749142268549,3.89954765,2564.4,2564.3,2.051]
[1749142268768,0.7876,2564.6,2563.5,0.0205]
[1749142268920,3.89998197,2564.2,2564.0,2.051]
[1749142269247,4.6876039,2564.1,2564.0,2.051]
[1749142269463,16.0,2564.0,2563.5,2.051]
[1749142269666,0.7876,2564.1,2563.5,2.051]
[1749142269812,3.90048742,2563.8,2563.5,2.051]
[1749142270150,4.26432048,2563.9,2563.5,2.051]
[1749142270318,1.71775982,2564.0,2563.5,2.051]
[1749142270515,4.69186454,2563.6,2563.5,2.051]
[1749142270717,21.41121096,2563.6,2563.5,2.051]
[1749142270949,21.05584034,2563.6,2563.5,2.051]
[1749142271467,4.67076889,2563.4,2563.3,8.419]
[1749142271773,4.67076889,2563.4,2563.2,2.036]
[1749142271774,19.90122108,2563.3,2563.2,2.036]
[1749142271920,1.89759072,2563.3,2562.8,2.036]
[1749142272127,3.90182995,2562.9,2562.8,2.036]
[1749142272326,4.72492995,2562.9,2562.8,2.036]
[1749142272825,1.17833136,2562.9,2562.8,2.036]
[1749142273053,0.8231,2562.9,2562.8,2.036]
[1749142273268,4.72492995,2562.9,2562.8,2.036]
[1749142273469,23.22398984,2562.9,2562.8,2.036]
[1749142273769,3.9019822,2562.8,2562.5,2.036]
[1749142273949,0.8231,2562.6,2562.1,0.02]
[1749142274262,3.90276006,2562.3,2562.1,0.02]
[1749142274432,0.8231,2562.6,2562.1,0.02]
[1749142274637,3.90289594,2562.2,2562.1,0.02]
[1749142274964,3.9027195,2562.4,2562.1,0.02]
[1749142275469,3.90289594,2562.2,2562.1,0.02]
[1749142275768,4.71509594,2562.2,2562.1,0.02]
[1749142276077,1.16726157,2562.2,2562.1,0.02]
[1749142276255,0.36220756,2563.2,2562.1,0.02]
[1749142276453,0.8122,2563.0,2562.1,0.02]